bitfinex/quotes_BTCUSD_20241027
["timestamp","ask_amount","ask_price","bid_price","bid_amount"]
[1730031974933,0.000822,67350.0,67349.0,0.6988856]
[1730031975151,0.000822,67350.0,67349.0,0.47648381]
[1730031975997,0.000822,67357.0,67356.0,0.148464]
[1730031976210,0.000822,67357.0,67356.0,0.320964]
[1730031977301,0.000822,67357.0,67356.0,0.325964]
[1730031977760,0.00082,67365.0,67357.0,0.005]
[1730031977998,0.00082,67365.0,67356.0,0.1795]
[1730031977999,0.00082,67365.0,67364.0,0.323647]
[1730031978499,0.00082,67365.0,67364.0,0.325647]
[1730031979846,0.000842,67367.0,67366.0,0.148442]
[1730031980063,0.000842,67367.0,67366.0,0.318642]
[1730031980274,0.000842,67368.0,67367.0,0.32364]
[1730031981018,0.000842,67368.0,67367.0,0.32864]
[1730031981238,0.1175867,67387.0,67382.0,0.0794]
[1730031981239,0.148399,67386.0,67382.0,0.0794]
[1730031981459,0.0138114,67385.0,67382.0,0.227807]
[1730031981697,0.15050381,67386.0,67382.0,0.0794]
[1730031981925,0.01381131,67385.0,67382.0,0.0794]
[1730031982178,0.01381131,67385.0,67384.0,0.148403]
[1730031982415,0.01381131,67386.0,67384.0,0.227802]
[1730031982639,0.0175867,67387.0,67386.0,0.1702]
[1730031982871,0.03139468,67387.0,67386.0,0.318598]
[1730031983090,0.0175867,67387.0,67386.0,0.318598]
[1730031983982,0.0175867,67387.0,67386.0,0.320598]
[1730031984191,0.0175867,67387.0,67386.0,0.318598]
[1730031986685,0.0175867,67387.0,67386.0,0.318598]
[1730031987375,0.0175867,67387.0,67386.0,0.48110181]
[1730031987601,0.0175867,67387.0,67386.0,0.47910181]
[1730031990062,0.0175867,67387.0,67386.0,0.48110181]
[1730031990285,0.0175867,67387.0,67386.0,0.47910181]
[1730031990491,0.0175867,67387.0,67386.0,0.48610181]
[1730031990941,0.0184077,67387.0,67386.0,0.48610181]
[1730031991388,0.0184077,67387.0,67386.0,0.48410181]
[1730031992073,0.0184077,67387.0,67386.0,0.48610181]
[1730031992280,0.0184077,67387.0,67386.0,0.48410181]
[1730031994675,0.0184077,67387.0,67386.0,0.318598]
[1730031994876,0.03221123,67387.0,67386.0,0.1702]
[1730031995097,0.03221123,67387.0,67386.0,0.318598]
[1730031995329,0.03907538,67387.0,67386.0,0.323598]
[1730031995542,0.03907538,67387.0,67386.0,0.318598]
[1730031995543,0.03221123,67387.0,67386.0,0.318598]
[1730031995771,0.03221123,67387.0,67386.0,0.323598]
[1730031997561,0.03221123,67387.0,67386.0,0.1702]
[1730031998023,0.03905431,67387.0,67386.0,0.1702]
[1730031998277,0.03905431,67387.0,67386.0,0.227798]
[1730031998494,0.03905431,67387.0,67386.0,0.0794]
[1730031998720,0.03905431,67387.0,67383.0,0.148405]
[1730031998721,0.18060723,67387.0,67383.0,0.148405]
[1730031998932,0.01380353,67386.0,67383.0,0.148405]
[1730031999170,0.01380353,67385.0,67382.0,0.153407]
[1730031999397,0.01380353,67384.0,67383.0,0.148404]
[1730031999617,0.01380353,67384.0,67383.0,0.148405]
[1730031999835,0.02064231,67384.0,67383.0,0.148405]
[1730032000056,0.01380353,67384.0,67383.0,0.148405]
[1730032000709,0.01380353,67384.0,67382.0,0.153407]
[1730032000942,0.01380353,67383.0,67382.0,0.153407]
[1730032001164,0.02063989,67383.0,67382.0,0.153407]
[1730032001374,0.01380353,67383.0,67382.0,0.153407]
[1730032004916,0.0184077,67387.0,67382.0,0.005]
[1730032005136,0.0184077,67387.0,67386.0,0.148398]
[1730032006324,0.0184077,67387.0,67384.0,0.148402]
[1730032006547,0.0184077,67387.0,67385.0,0.148399]
[1730032006822,0.0184077,67387.0,67386.0,0.148398]
[1730032007263,0.02951212,67387.0,67386.0,0.148398]
[1730032008333,0.0184077,67387.0,67386.0,0.148398]
[1730032008899,0.0184077,67387.0,67383.0,0.005]
[1730032009105,0.0184077,67387.0,67385.0,0.296801]
[1730032009530,0.0184077,67387.0,67386.0,0.148398]
[1730032009729,0.0184077,67387.0,67384.0,0.148402]
[1730032009936,0.0184077,67387.0,67386.0,0.148398]
[1730032010165,0.0184077,67387.0,67384.0,0.148401]
[1730032010366,0.29678,67390.0,67383.0,0.005]
[1730032010367,0.296784,67389.0,67383.0,0.005]
[1730032010718,0.296757,67395.0,67383.0,0.005]
[1730032010944,0.296766,67393.0,67383.0,0.005]
[1730032011169,0.03,67385.0,67378.0,0.22240179]
[1730032011397,0.148411,67381.0,67378.0,0.22240179]
[1730032011615,0.01111974,67380.0,67378.0,0.22240179]
[1730032011820,0.01111974,67379.0,67378.0,0.22240179]
[1730032012230,0.01111974,67379.0,67375.0,0.0822]
[1730032012440,0.01111974,67379.0,67375.0,0.23062]
[1730032012682,0.01111974,67378.0,67375.0,0.0822]
[1730032012906,0.148408,67382.0,67376.0,0.148419]
[1730032013107,0.01112008,67377.0,67376.0,0.148419]
[1730032013381,0.01112008,67377.0,67371.0,0.400861]
[1730032013382,0.01112008,67377.0,67371.0,0.099]
[1730032013608,0.296846,67375.0,67370.0,0.22240179]
[1730032013818,0.16162389,67376.0,67370.0,0.22240179]
[1730032013819,0.01112008,67374.0,67370.0,0.22240179]
[1730032014031,0.01112008,67373.0,67370.0,0.22740179]
[1730032014248,0.296847,67375.0,67368.0,0.083842]
[1730032014465,0.00693707,67372.0,67368.0,0.001642]
[1730032014700,0.15050381,67371.0,67368.0,0.001642]
[1730032014924,0.148436,67369.0,67368.0,0.001642]
[1730032015147,0.29893581,67371.0,67368.0,0.001642]
[1730032015363,0.00693704,67369.0,67368.0,0.001642]
[1730032015599,0.15050381,67371.0,67368.0,0.001642]
[1730032015776,0.00693704,67369.0,67368.0,0.001642]
[1730032016018,0.15050381,67371.0,67368.0,0.001642]
[1730032016220,0.00693704,67369.0,67368.0,0.001642]
[1730032016427,0.15050381,67371.0,67368.0,0.001642]
[1730032016639,0.00681658,67369.0,67368.0,0.001642]
[1730032016845,0.15050381,67371.0,67368.0,0.001642]
[1730032017087,0.00681658,67369.0,67368.0,0.001642]
[1730032017300,0.01388065,67369.0,67368.0,0.001642]
[1730032017508,0.02069723,67369.0,67368.0,0.001642]
[1730032020182,0.16913323,67369.0,67368.0,0.001642]
[1730032020404,0.31963704,67369.0,67368.0,0.001642]
[1730032021192,0.38615547,67369.0,67368.0,0.001642]
[1730032021396,0.29893981,67369.0,67368.0,0.001642]
[1730032022471,0.36545824,67369.0,67368.0,0.001642]
[1730032023085,0.38357596,67369.0,67368.0,0.001642]
[1730032023294,0.31705753,67369.0,67368.0,0.001642]
[1730032023833,0.29893981,67369.0,67368.0,0.001642]
[1730032024486,0.34327641,67369.0,67368.0,0.001642]
[1730032024694,0.29893981,67369.0,67368.0,0.001642]
[1730032025339,0.34326934,67369.0,67368.0,0.001642]
[1730032026599,0.29893981,67369.0,67368.0,0.001642]
[1730032028053,0.29976081,67369.0,67368.0,0.001642]
[1730032030601,0.42276081,67369.0,67368.0,0.001642]
[1730032030804,0.46705382,67369.0,67368.0,0.001642]
[1730032031036,0.48927832,67369.0,67368.0,0.001642]
[1730032031240,0.61937101,67369.0,67368.0,0.001642]
[1730032031455,0.61928531,67369.0,67368.0,0.001642]
[1730032031867,0.58624224,67369.0,67368.0,0.001642]
[1730032032414,0.58624224,67369.0,67368.0,4.5e-07]
[1730032032634,0.69710476,67369.0,67368.0,4.5e-07]
[1730032033726,0.71350476,67369.0,67368.0,4.5e-07]
[1730032034635,0.75911609,67369.0,67368.0,4.5e-07]
[1730032034848,0.64825357,67369.0,67368.0,4.5e-07]
[1730032035515,0.79875738,67369.0,67368.0,4.5e-07]
[1730032035744,0.40494,67367.0,67366.0,0.99940681]
[1730032035963,0.65274296,67367.0,67366.0,0.85096181]
[1730032036474,0.66382835,67367.0,67366.0,0.85096181]
[1730032036667,0.82818898,67367.0,67366.0,0.80450585]
[1730032036900,0.81433216,67367.0,67366.0,0.80450585]
[1730032037104,0.81710419,67367.0,67366.0,0.80450585]
[1730032037305,0.8143327,67367.0,67366.0,0.80450585]
[1730032037552,0.80324677,67367.0,67366.0,0.80450585]
[1730032039582,0.81433142,67367.0,67366.0,0.80450585]
[1730032040544,1.48459058,67367.0,67366.0,0.64792078]
[1730032040774,1.45393762,67367.0,67366.0,0.58854278]
[1730032041400,1.45393762,67367.0,67366.0,0.40891242]
[1730032041606,1.45393762,67367.0,67366.0,0.37922342]
[1730032041825,1.45393762,67367.0,67366.0,0.22758621]
[1730032042027,0.148471,67353.0,67352.0,0.22240179]
[1730032042243,0.55128799,67353.0,67352.0,0.22240179]
[1730032042459,0.57428799,67353.0,67352.0,0.22240179]
[1730032042702,0.148478,67350.0,67349.0,0.001642]
[1730032042917,0.43306879,67350.0,67349.0,0.001642]
[1730032043360,0.43306879,67350.0,67349.0,0.173042]
[1730032043592,0.26159079,67350.0,67349.0,0.173042]
[1730032043855,0.41006879,67350.0,67349.0,0.173042]
[1730032044989,0.41006879,67350.0,67349.0,0.16869524]
[1730032045447,0.16159079,67350.0,67349.0,0.16869524]
[1730032046782,0.31006879,67350.0,67349.0,0.16869524]
[1730032047870,0.31007075,67350.0,67349.0,0.16869524]
[1730032048485,0.16159275,67350.0,67349.0,0.16869524]
[1730032048709,0.01108894,67350.0,67349.0,0.16869524]
[1730032049578,0.01108894,67350.0,67349.0,0.31717524]
[1730032050241,0.01108894,67350.0,67349.0,0.16869524]
[1730032051624,0.148474,67352.0,67349.0,0.16869524]
[1730032051832,0.01109537,67351.0,67350.0,0.0753]
[1730032052045,0.15957037,67351.0,67350.0,0.0753]
[1730032052261,0.15957037,67351.0,67350.0,0.1662]
[1730032052888,0.01109537,67351.0,67350.0,0.16473626]
[1730032053158,0.04109537,67351.0,67350.0,0.16473626]
[1730032053613,0.03,67351.0,67350.0,0.16184172]
[1730032061680,0.178475,67351.0,67350.0,0.16184172]
[1730032063569,0.22271141,67351.0,67342.0,0.296991]
[1730032063776,0.22271141,67351.0,67338.0,0.15084351]
[1730032063777,0.01111771,67350.0,67345.0,0.148487]
[1730032063991,0.03,67351.0,67349.0,0.14848]
[1730032064208,0.03,67351.0,67339.0,0.297004]
[1730032064209,0.01111771,67350.0,67339.0,0.297004]
[1730032064422,0.01111771,67349.0,67339.0,0.297004]
[1730032064641,0.01111771,67348.0,67343.0,0.148492]
[1730032064864,0.01111771,67348.0,67344.0,0.148491]
[1730032065065,0.01111771,67347.0,67343.0,0.15146157]
[1730032065267,0.148478,67350.0,67343.0,0.15146157]
[1730032065268,0.01111771,67346.0,67343.0,0.148492]
[1730032065460,0.148478,67350.0,67343.0,0.148492]
[1730032065461,0.01111771,67345.0,67343.0,0.148492]
[1730032065730,0.01111771,67344.0,67343.0,0.148492]
[1730032066866,0.01111771,67344.0,67343.0,0.314692]
[1730032070148,0.0111194,67344.0,67339.0,0.1715]
[1730032070394,0.000822,67352.0,67341.0,0.1715]
[1730032070632,0.01112002,67351.0,67339.0,0.0767]
[1730032070863,0.01112002,67350.0,67346.0,0.1715]
[1730032071097,0.01112002,67349.0,67346.0,0.1715]
[1730032071339,0.01112002,67348.0,67346.0,0.1715]
[1730032071825,0.01112002,67347.0,67346.0,0.1715]
[1730032072565,0.01112002,67347.0,67346.0,0.319986]
[1730032073746,0.01113244,67347.0,67343.0,0.296985]
[1730032073975,0.01113244,67347.0,67345.0,0.148487]
[1730032074204,0.01113244,67346.0,67345.0,0.225187]
[1730032074451,0.01113244,67346.0,67345.0,0.319987]
[1730032076647,0.01113244,67346.0,67345.0,0.324987]
[1730032077535,0.000822,67346.0,67345.0,0.0998]
[1730032078156,0.000822,67346.0,67345.0,0.25055821]
[1730032078181,0.000822,67346.0,67345.0,0.25555821]
[1730032078197,0.000822,67346.0,67345.0,0.33605821]
[1730032078455,0.01195382,67346.0,67345.0,0.48359281]
[1730032078865,0.02308747,67346.0,67345.0,0.48359281]
[1730032079302,0.03421932,67346.0,67345.0,0.48359281]
[1730032079530,0.01195382,67346.0,67345.0,0.48359281]
[1730032081208,0.01195382,67346.0,67345.0,0.328089]
[1730032081427,0.01195382,67346.0,67345.0,0.333089]
[1730032081653,0.01195382,67346.0,67345.0,0.323089]
[1730032086345,0.01195382,67346.0,67340.0,0.391099]
[1730032086589,0.01113182,67345.0,67340.0,0.391099]
[1730032086824,0.05560203,67345.0,67343.0,0.148493]
[1730032087060,0.000822,67346.0,67341.0,0.148496]
[1730032087061,0.05560203,67344.0,67341.0,0.148496]
[1730032087355,0.04447021,67343.0,67339.0,0.0805]
[1730032087566,0.01112878,67342.0,67339.0,0.229001]
[1730032087791,0.01112878,67341.0,67339.0,0.229001]
[1730032088027,0.23353057,67340.0,67338.0,0.001644]
[1730032088266,0.27972694,67339.0,67338.0,0.001644]
[1730032088489,0.5497122,67339.0,67338.0,0.001644]
[1730032088714,0.4012102,67339.0,67338.0,0.001644]
[1730032088941,0.41233741,67339.0,67338.0,0.001644]
[1730032089361,0.32340381,67339.0,67338.0,0.001644]
[1730032090256,0.56089527,67339.0,67338.0,0.001644]
[1730032090466,0.4607786,67339.0,67338.0,0.001644]
[1730032090677,0.3122766,67339.0,67338.0,0.001644]
[1730032090886,0.4607786,67339.0,67338.0,0.001644]
[1730032091100,0.54977335,67339.0,67338.0,0.001644]
[1730032091308,0.40127135,67339.0,67338.0,0.001644]
[1730032091939,0.25076754,67339.0,67338.0,0.001644]
[1730032092186,0.26189383,67339.0,67338.0,0.001644]
[1730032092403,0.17289908,67339.0,67338.0,0.150148]
[1730032092643,0.07786087,67339.0,67338.0,0.150148]
[1730032092850,0.01112629,67339.0,67338.0,0.150148]
[1730032093777,0.04448642,67339.0,67338.0,0.447156]
[1730032094198,0.03,67340.0,67339.0,0.148502]
[1730032098736,0.03,67340.0,67339.0,0.327802]
[1730032101450,0.04111836,67340.0,67339.0,0.327802]
[1730032104780,0.03,67340.0,67339.0,0.327802]
[1730032104989,0.04111691,67340.0,67339.0,0.327802]
[1730032106554,0.01111691,67340.0,67339.0,0.327802]
[1730032107387,0.04448642,67345.0,67344.0,0.148491]
[1730032107610,0.04448642,67345.0,67342.0,0.296987]
[1730032107611,0.04530842,67346.0,67343.0,0.296987]
[1730032107843,0.04530842,67346.0,67345.0,0.148489]
[1730032109128,0.000822,67346.0,67345.0,0.148489]
[1730032109342,0.000822,67346.0,67341.0,0.148497]
[1730032109541,0.000822,67346.0,67342.0,0.148494]
[1730032109758,0.04530842,67346.0,67342.0,0.148494]
[1730032109958,0.04530842,67346.0,67344.0,0.14849]
[1730032110184,0.000822,67346.0,67344.0,0.14849]
[1730032110401,0.04530842,67346.0,67343.0,0.148493]
[1730032110807,0.04529842,67346.0,67343.0,0.148493]
[1730032112335,0.000822,67346.0,67344.0,0.14849]
[1730032112809,0.000822,67346.0,67341.0,0.296995]
[1730032113025,0.04529842,67346.0,67341.0,0.296995]
[1730032113271,0.04529842,67346.0,67343.0,0.148491]
[1730032113272,0.000822,67346.0,67343.0,0.148491]
[1730032113477,0.000822,67346.0,67339.0,0.476303]
[1730032113696,0.000822,67346.0,67344.0,0.14849]
[1730032114796,0.000822,67346.0,67342.0,0.148494]
[1730032115211,0.000822,67346.0,67343.0,0.148492]
[1730032115667,0.000822,67346.0,67341.0,0.148495]
[1730032115870,0.04529842,67346.0,67342.0,0.148495]
[1730032116555,0.04529842,67346.0,67340.0,0.297]
[1730032116772,0.04529842,67346.0,67339.0,0.1793]
[1730032117045,0.000822,67346.0,67341.0,0.148496]
[1730032117243,0.04529842,67346.0,67341.0,0.148496]
[1730032117659,0.04529842,67346.0,67342.0,0.148494]
[1730032118510,0.04529842,67346.0,67340.0,0.297]
[1730032118719,0.04529842,67346.0,67341.0,0.148497]
[1730032118937,0.04529842,67346.0,67340.0,0.297]
[1730032119163,0.000822,67346.0,67342.0,0.148494]
[1730032119576,0.000822,67346.0,67340.0,0.297]
[1730032119789,0.000822,67346.0,67342.0,0.148495]
[1730032120474,0.000822,67346.0,67344.0,0.148491]
[1730032123271,0.04529842,67346.0,67344.0,0.148491]
[1730032123508,0.04529842,67346.0,67343.0,0.148492]
[1730032123721,0.04529842,67346.0,67344.0,0.14849]
[1730032124638,0.04529842,67346.0,67345.0,0.148489]
[1730032125260,0.000822,67346.0,67345.0,0.148489]
[1730032125713,0.04532473,67346.0,67345.0,0.148489]
[1730032129504,0.0453397,67346.0,67345.0,0.148489]
[1730032130354,0.000822,67346.0,67344.0,0.14849]
[1730032130560,0.0445194,67345.0,67344.0,0.14849]
[1730032133693,0.0445194,67345.0,67343.0,0.148491]
[1730032133903,0.04452124,67345.0,67343.0,0.148491]
[1730032134102,0.04452124,67345.0,67344.0,0.148491]
[1730032134733,0.06678187,67345.0,67344.0,0.148491]
[1730032136297,0.08986449,67346.0,67344.0,0.148491]
[1730032137437,0.06681628,67345.0,67344.0,0.148491]
[1730032137656,0.000822,67346.0,67344.0,0.148491]
[1730032137880,0.0668163,67345.0,67344.0,0.148491]
[1730032138127,0.000822,67346.0,67344.0,0.148491]
[1730032138332,0.24294886,67346.0,67344.0,0.148491]
[1730032138542,0.15308437,67345.0,67344.0,0.148491]
[1730032140052,0.15216589,67345.0,67344.0,0.148491]
[1730032140679,0.24120838,67345.0,67344.0,0.148491]
[1730032141774,0.15216589,67345.0,67344.0,0.148491]
[1730032141991,0.08986449,67346.0,67345.0,0.148489]
[1730032142211,0.08994586,67346.0,67345.0,0.148489]
[1730032142483,0.000822,67346.0,67345.0,0.148489]
[1730032142736,0.24225506,67346.0,67345.0,0.148489]
[1730032142964,0.15312708,67346.0,67345.0,0.148489]
[1730032143191,0.24225504,67346.0,67345.0,0.148489]
[1730032144562,0.06767144,67346.0,67345.0,0.148489]
[1730032144785,0.06767142,67346.0,67345.0,0.148489]
[1730032145284,0.000822,67346.0,67345.0,0.148489]
[1730032146874,0.06685247,67346.0,67339.0,0.1793]
[1730032147100,0.04456831,67344.0,67341.0,0.296995]
[1730032147565,0.04456831,67344.0,67343.0,0.148493]
[1730032149123,0.04418631,67344.0,67343.0,0.148493]
[1730032151561,0.06685948,67346.0,67345.0,0.148489]
[1730032157508,0.06768148,67346.0,67345.0,0.148489]
[1730032164798,0.06768148,67346.0,67341.0,0.296995]
[1730032165022,0.06768148,67346.0,67345.0,0.148489]
[1730032165667,0.06768422,67346.0,67345.0,0.148489]
[1730032170414,0.06768634,67346.0,67345.0,0.148489]
[1730032171989,0.06768634,67346.0,67345.0,0.247789]
[1730032172193,0.06768634,67346.0,67345.0,0.330689]
[1730032177500,0.000822,67346.0,67345.0,0.330689]
[1730032179240,0.04539756,67346.0,67345.0,0.330689]
[1730032179870,0.04539665,67346.0,67345.0,0.330689]
[1730032181402,0.000822,67346.0,67345.0,0.330689]
[1730032190745,0.000822,67346.0,67345.0,0.335689]
[1730032192543,0.000822,67346.0,67345.0,0.48619281]
[1730032192761,0.000822,67346.0,67345.0,0.49119281]
[1730032196660,0.000822,67346.0,67345.0,0.50916903]
[1730032203870,0.000822,67346.0,67345.0,0.51916903]
[1730032204102,0.000822,67346.0,67345.0,0.61916903]
[1730032204980,0.000822,67346.0,67345.0,0.64216903]
[1730032208497,0.000822,67352.0,67351.0,0.450875]
[1730032208716,0.000822,67352.0,67351.0,0.63004442]
[1730032209213,0.000822,67352.0,67351.0,0.65304442]
[1730032211156,0.22240179,67365.0,67364.0,0.340847]
[1730032211408,0.000821,67367.0,67364.0,0.340847]
[1730032211409,0.000821,67367.0,67366.0,0.168442]
[1730032211666,0.000821,67367.0,67366.0,0.62434581]
[1730032212840,0.000821,67367.0,67366.0,0.67089133]
[1730032213328,0.22240179,67383.0,67368.0,0.02]
[1730032213561,1e-06,67369.0,67368.0,0.62730955]
[1730032213781,1e-06,67369.0,67368.0,0.62434181]
[1730032216129,1e-06,67369.0,67368.0,0.62634181]
[1730032216810,1e-06,67369.0,67368.0,0.62434181]
[1730032226930,1e-06,67369.0,67368.0,0.62634181]
[1730032227649,0.22240179,67383.0,67382.0,0.01]
[1730032227870,0.22240179,67383.0,67382.0,0.30891081]
[1730032228091,0.000821,67387.0,67386.0,0.473098]
[1730032228310,0.000821,67387.0,67386.0,0.62360181]
[1730032233396,0.078841,67410.0,67397.0,0.158374]
[1730032233397,0.22440179,67400.0,67397.0,0.158374]
[1730032233632,0.22440179,67400.0,67397.0,0.30887781]
[1730032234084,0.002,67400.0,67397.0,0.30887781]
[1730032238365,0.002,67400.0,67397.0,0.7128796]
[1730032238562,0.002,67400.0,67397.0,0.59047781]
[1730032238944,0.002,67400.0,67399.0,0.15337]
[1730032239151,0.002,67400.0,67399.0,0.30387381]
[1730032242036,0.002,67400.0,67399.0,0.30887381]
[1730032242243,0.002,67400.0,67399.0,0.30387381]
[1730032242460,0.002,67400.0,67399.0,0.31184072]
[1730032242675,0.002,67400.0,67399.0,0.30887381]
[1730032243138,0.002,67400.0,67399.0,0.40217381]
[1730032243827,0.000841,67408.0,67407.0,0.148352]
[1730032245705,0.078,67407.0,67403.0,0.005]
[1730032245972,0.078,67407.0,67406.0,0.148353]
[1730032249069,0.078,67407.0,67405.0,0.148356]
[1730032249376,0.078,67407.0,67398.0,0.005]
[1730032249589,0.078,67407.0,67402.0,0.51912579]
[1730032249840,0.078,67407.0,67406.0,0.148354]
[1730032250333,0.078,67407.0,67403.0,0.296722]
[1730032250575,0.078,67407.0,67406.0,0.148354]
[1730032253285,0.078,67407.0,67403.0,0.296719]
[1730032253526,0.078,67407.0,67406.0,0.148354]
[1730032255716,0.102141,67408.0,67405.0,0.296712]
[1730032255717,0.000841,67408.0,67405.0,0.296712]
[1730032255960,0.000841,67408.0,67407.0,0.148352]
[1730032256688,0.000841,67408.0,67407.0,0.23381885]
[1730032256958,0.000841,67408.0,67407.0,0.23881885]
[1730032260997,0.000841,67408.0,67407.0,0.6087576]
[1730032261235,0.000841,67408.0,67407.0,0.38635581]
[1730032261475,0.000841,67408.0,67407.0,0.48825581]
[1730032262165,0.000841,67408.0,67407.0,0.49325581]
[1730032263841,0.000841,67408.0,67407.0,0.50325581]
[1730032266114,0.000841,67408.0,67407.0,0.52625581]
[1730032267077,1e-06,67410.0,67409.0,0.158348]
[1730032267380,0.1792,67433.0,67409.0,0.158348]
[1730032267381,0.22240179,67442.0,67436.0,0.153288]
[1730032267596,0.22240179,67442.0,67436.0,0.15625332]
[1730032267834,0.05508334,67451.0,67436.0,0.153288]
[1730032268259,0.05508334,67451.0,67436.0,0.30879181]
[1730032269223,0.15278334,67451.0,67436.0,0.153288]
[1730032269959,0.15278334,67451.0,67436.0,0.15625335]
[1730032270186,0.15278334,67451.0,67436.0,0.30675716]
[1730032270415,0.15278334,67451.0,67436.0,0.30379181]
[1730032270647,0.05508334,67451.0,67436.0,0.30379181]
[1730032271595,0.05508334,67451.0,67436.0,0.30675692]
[1730032271830,0.05508334,67451.0,67436.0,0.30379181]
[1730032272047,0.05508334,67451.0,67436.0,1.30379181]
[1730032273197,0.05508334,67451.0,67436.0,1.153288]
[1730032274715,0.05508334,67451.0,67436.0,1.30379181]
[1730032275877,0.05508334,67451.0,67436.0,1.37969181]
[1730032280221,0.002,67450.0,67436.0,1.229188]
[1730032280428,0.002,67450.0,67436.0,1.153288]
[1730032281317,0.05508334,67451.0,67436.0,1.153288]
[1730032285318,0.000841,67437.0,67436.0,1.153288]
[1730032287119,0.001,67441.0,67440.0,0.148279]
[1730032288248,0.001,67441.0,67440.0,0.153279]
[1730032290744,0.13308334,67451.0,67449.0,0.148258]
[1730032290972,0.05508334,67451.0,67450.0,0.148257]
[1730032296564,0.05590434,67451.0,67450.0,0.148257]
[1730032297057,0.05090434,67451.0,67450.0,0.148257]
[1730032297990,0.05090434,67451.0,67445.0,0.296537]
[1730032298208,0.05090434,67451.0,67449.0,0.14826]
[1730032298645,0.05090434,67451.0,67447.0,0.296529]
[1730032298646,0.05090434,67451.0,67450.0,0.148257]
[1730032298863,0.05090434,67451.0,67448.0,0.296524]
[1730032299101,0.05090434,67451.0,67447.0,0.296529]
[1730032299577,0.05090434,67451.0,67449.0,0.148259]
[1730032300061,0.05090434,67451.0,67450.0,0.148257]
[1730032300761,0.05090434,67451.0,67449.0,0.148259]
[1730032301223,0.05090434,67451.0,67450.0,0.148257]
[1730032304255,0.05090434,67451.0,67448.0,0.296524]
[1730032304491,0.05090434,67451.0,67450.0,0.148257]
[1730032306594,0.05090434,67451.0,67446.0,0.22240179]
[1730032306843,0.05090434,67451.0,67450.0,0.148257]
[1730032307075,0.05090434,67451.0,67448.0,0.14826]
[1730032307311,0.05090434,67451.0,67448.0,0.296524]
[1730032307565,0.05290434,67451.0,67447.0,0.148264]
[1730032307802,0.05290434,67451.0,67445.0,0.148268]
[1730032307803,0.002,67450.0,67445.0,0.148268]
[1730032308048,0.002,67449.0,67444.0,0.22240179]
[1730032308328,0.05090434,67451.0,67444.0,0.37067179]
[1730032308574,0.002,67449.0,67444.0,0.22240179]
[1730032308833,0.05090434,67451.0,67444.0,0.22240179]
[1730032309080,0.002,67444.0,67440.0,0.001642]
[1730032309328,0.002,67446.0,67441.0,0.22240179]
[1730032309552,0.32400381,67450.0,67441.0,0.22240179]
[1730032309774,0.002,67445.0,67440.0,0.001642]
[1730032310210,0.32400381,67450.0,67440.0,0.001642]
[1730032310446,0.12946604,67449.0,67440.0,0.001642]
[1730032310668,0.08372509,67449.0,67440.0,0.14992]
[1730032310890,0.08372509,67449.0,67440.0,0.001642]
[1730032311329,0.08372509,67449.0,67440.0,0.149921]
[1730032311771,0.08372509,67449.0,67440.0,0.001642]
[1730032312467,0.08372509,67449.0,67440.0,0.149921]
[1730032312705,0.1281198,67449.0,67440.0,0.001642]
[1730032312923,0.04439471,67447.0,67440.0,0.001642]
[1730032313156,0.15050381,67446.0,67440.0,0.001642]
[1730032313853,0.1735,67445.0,67440.0,0.001642]
[1730032314081,0.32400381,67445.0,67440.0,0.001642]
[1730032314608,0.32600381,67445.0,67440.0,0.001642]
[1730032315039,0.32400381,67445.0,67440.0,0.001642]
[1730032315261,0.15050381,67445.0,67440.0,0.14992]
[1730032315515,0.24009206,67450.0,67441.0,0.22740179]
[1730032315516,0.04439471,67450.0,67441.0,0.22740179]
[1730032315762,0.05090434,67451.0,67450.0,0.148257]
[1730032318705,0.05090434,67451.0,67450.0,0.44835879]
[1730032318935,0.05090434,67451.0,67450.0,0.225957]
[1730032319864,0.05090434,67451.0,67450.0,0.230957]
[1730032320535,0.05090434,67451.0,67450.0,0.227599]
[1730032324632,0.05090434,67451.0,67450.0,0.232599]
[1730032334597,0.05090434,67451.0,67450.0,0.149899]
[1730032335864,0.0175867,67454.0,67450.0,0.001642]
[1730032336150,0.0175867,67454.0,67451.0,0.148254]
[1730032336406,0.2635304,67497.0,67475.0,0.148203]
[1730032336656,0.22240179,67490.0,67489.0,0.148172]
[1730032336893,0.00027,67498.0,67489.0,0.148172]
[1730032336894,0.00027,67498.0,67489.0,0.0807]
[1730032337134,0.00027,67498.0,67494.0,0.148161]
[1730032337411,0.00027,67498.0,67489.0,0.0807]
[1730032337412,0.118172,67500.0,67490.0,0.22240179]
[1730032337650,0.118172,67500.0,67498.0,0.296304]
[1730032337893,0.118172,67500.0,67498.0,0.148152]
[1730032337894,0.1,67499.0,67498.0,0.148152]
[1730032338123,0.1,67499.0,67497.0,0.005]
[1730032338366,0.10684674,67499.0,67495.0,0.296314]
[1730032338600,0.10684674,67499.0,67498.0,0.153152]
[1730032338601,0.1,67499.0,67498.0,0.153152]
[1730032339037,0.1,67499.0,67492.0,0.005]
[1730032339313,0.1,67499.0,67491.0,0.22240179]
[1730032339314,0.1,67499.0,67498.0,0.148152]
[1730032339528,0.1,67499.0,67495.0,0.296318]
[1730032339780,0.1,67499.0,67497.0,0.148154]
[1730032340066,0.1,67499.0,67487.0,0.22740179]
[1730032340288,0.1,67499.0,67494.0,0.22240179]
[1730032340504,0.1,67499.0,67492.0,0.29633]
[1730032340747,0.1,67499.0,67495.0,0.148157]
[1730032340970,0.1,67499.0,67494.0,0.37056179]
[1730032341221,0.1,67499.0,67494.0,0.148161]
[1730032341463,0.1,67499.0,67494.0,0.14816]
[1730032341701,0.1,67499.0,67497.0,0.005]
[1730032341934,0.1,67499.0,67497.0,0.153154]
[1730032342396,0.1,67499.0,67498.0,0.148152]
[1730032342618,0.1,67499.0,67497.0,0.005]
[1730032343772,0.1,67499.0,67495.0,0.005]
[1730032344025,0.1,67499.0,67494.0,0.22240179]
[1730032344247,0.1,67497.0,67491.0,0.005]
[1730032345402,0.248152,67498.0,67491.0,0.005]
[1730032345645,0.002,67497.0,67487.0,0.22740179]
[1730032345869,0.100821,67499.0,67487.0,0.22740179]